fUSD/lending_fUSD_20250222
["ID","MTS","AMOUNT","RATE_DAILY","PERIOD"]
[354098832,1740237033000,-222.7574839,0.00012998,2]
[354098833,1740237033009,-500.0,0.00012999,2]
[354098834,1740237033018,-500.0,0.00012999,2]
[354098835,1740237033027,-294.15,0.00012999,2]
[354098836,1740237033037,-500.0,0.00012999,2]
[354098837,1740237033049,-500.0,0.00012999,2]
[354098838,1740237033059,-508.93192958,0.00012999,2]
[354098839,1740237033068,-500.0,0.00012999,2]
[354098840,1740237033077,-500.0,0.00012999,2]
[354098841,1740237033087,-656.04,0.00012999,2]
[354098842,1740237033097,-1038.0,0.00013,2]
[354098843,1740237033107,-564921.14900529,0.00013,5]
[354098844,1740237033120,-13144.50005,0.00013,5]
[354098845,1740237033143,-54853.10864286,0.00013,5]
[354098846,1740237033155,-251344.47769387,0.00013,5]
[354098856,1740237038144,-494.2600002,0.00013,2]
[354098857,1740237038183,-433.7399998,0.00013,2]
[354098858,1740237038193,-570.65699724,0.00013,5]
[354098859,1740237038204,-7342.86875124,0.00013,5]
[354098860,1740237038313,-171113.96036685,0.00013,5]
[354098861,1740237038442,-24858.84517,0.00013,5]
[354098935,1740237040517,-20927.22964041,0.00013,5]
[354098936,1740237040662,-464.08763224,0.00013,5]
[354098937,1740237040674,-329.13399716,0.00013,5]
[354098996,1740237043307,-1421.2785,0.000129,2]
[354098997,1740237043317,-99323.05078158,0.00013,5]
[354099054,1740237908879,906706.75385876,0.0001,2]
[354099055,1740237977891,20967.83706784,9.99e-05,2]
[354099056,1740238078503,100000.0,0.0001,2]
[354099057,1740238078528,1072325.4090734,0.0001,2]
[354099058,1740238078554,1157664.6347881,0.0001,2]
[354099060,1740238214000,161.0,0.0001,3]
[354099073,1740238231507,-395.45524731,0.00010441,2]
[354099074,1740238231519,-56.95475269,0.00010441,2]
[354099075,1740238231528,-214.54524731,0.00011585,2]
[354099076,1740238231596,-285.45475269,0.00011585,2]
[354099077,1740238231605,-500.0,0.00011585,2]
[354099078,1740238231615,-165.52,0.00012115,2]
[354099079,1740238231624,-1000.0,0.00012127,2]
[354099080,1740238231632,-19.48339753,0.00012194,2]
[354099081,1740238231643,-420.15660247,0.00012194,2]
[354099082,1740238231653,-250.0,0.00012199,2]
[354099083,1740238231662,-163.82,0.00012253,2]
[354099084,1740238231671,-166.02339753,0.00012253,2]
[354099085,1740238231682,-13385.90660247,0.00012253,2]
[354099086,1740238231691,-365.38,0.00012359,2]
[354099087,1740238231701,-576.19,0.00012359,2]
[354099088,1740238231710,-161.0,0.000124,3]
[354099089,1740238231720,-452.41,0.00012705,2]
[354099090,1740238231729,-555.9041414,0.000128,2]
[354099091,1740238231738,-608.08780852,0.0001287,2]
[354099092,1740238231756,-345.2004754,0.0001287,2]
[354099093,1740238231767,-163.73590608,0.0001287,2]
[354099094,1740238231776,-7165.47847561,0.00012884,2]
[354099095,1740238231785,-34285.39933521,0.000129,2]
[354099096,1740238231804,-382.0,0.000129,2]
[354099097,1740238231816,-4863.28192416,0.000129,2]
[354099099,1740238231888,-22243.19794063,0.000129,2]
[354099101,1740238231898,-30184.7941,0.000129,2]
[354099102,1740238231907,-500.0,0.000129,2]
[354099104,1740238231917,-848.7487,0.000129,2]
[354099106,1740238231926,-162.35028127,0.000129,2]
[354099108,1740238231935,-156.68412185,0.000129,2]
[354099110,1740238231945,-1000.0,0.000129,2]
[354099112,1740238231955,-4028.64,0.000129,2]
[354099114,1740238231964,-190.42667405,0.000129,2]
[354099116,1740238231973,-318.53397744,0.000129,2]
[354099118,1740238231982,-30718.37155196,0.000129,2]
[354099120,1740238231993,-897.05114804,0.000129,2]
[354099122,1740238232003,-205.10938737,0.000129,2]
[354099124,1740238232012,-88.71898123,0.00012933,2]
[354099219,1740238237394,-282.55999991,0.00012933,2]
[354099220,1740238237408,-146.96047137,0.00012933,2]
[354099221,1740238237418,-518.23945251,0.00012936,2]
[354099222,1740238237427,-518.23945251,0.00012967,2]
[354099223,1740238237436,-814.00176026,0.00012985,2]
[354099224,1740238237447,-509.73479118,0.00012985,2]
[354099225,1740238237458,-1424.195,0.00012985,2]
[354099226,1740238237468,-955.22927835,0.00012985,2]
[354099227,1740238237492,-1089.93117021,0.00012985,2]
[354099228,1740238237501,-94.63940285,0.00012997,2]
[354099229,1740238237513,-423.60004966,0.00012997,2]
[354099230,1740238237522,-44.94593107,0.00012999,2]
[354099231,1740238237533,-455.05406893,0.00012999,2]
[354099232,1740238237543,-500.0,0.00012999,2]
[354099233,1740238237552,-244.133704,0.00012999,2]
[354099234,1740238237562,-500.0,0.00012999,2]
[354099235,1740238237572,-500.0,0.00012999,2]
[354099236,1740238237581,-281.45347467,0.00012999,2]
[354099237,1740238237593,-218.54652533,0.00012999,2]
[354099238,1740238237602,-500.0,0.00012999,2]
[354099239,1740238237612,-500.0,0.00012999,2]
[354099240,1740238237621,-500.0,0.00012999,2]
[354099241,1740238237631,-500.0,0.00012999,2]
[354099242,1740238237640,-628.7,0.00012999,2]
[354099243,1740238237650,-87.46806934,0.00012999,2]
[354099244,1740238237662,-412.53193066,0.00012999,2]
[354099245,1740238237673,-500.0,0.00012999,2]
[354099246,1740238237683,-37.28857866,0.00012999,2]
[354099288,1740238239607,-462.71142134,0.00012999,2]
[354099290,1740238239618,-500.0,0.00012999,2]
[354099292,1740238239627,-500.0,0.00012999,2]
[354099294,1740238239636,-500.0,0.00012999,2]
[354099296,1740238239646,-500.0,0.00012999,2]
[354099298,1740238239655,-500.0,0.00012999,2]
[354099300,1740238239664,-500.0,0.00012999,2]
[354099302,1740238239673,-833.0,0.00013,2]
[354099304,1740238239682,-790.38677636,0.00013,5]
[354099307,1740238239693,-261.49229098,0.00013,5]
[354099319,1740238239794,-10377.59079056,0.00013,5]
[354099321,1740238239805,-328.86805204,0.00013,5]
[354099323,1740238239816,-4559.689305,0.00013,5]
[354099329,1740238239858,-8779.98879212,0.00013,5]
[354099335,1740238239903,-3141.61514138,0.00013,5]
[354099337,1740238239915,-2378.73847297,0.00013,5]
[354099346,1740238239989,-1051.86026952,0.00013,5]
[354099347,1740238240000,-2643.30290429,0.00013,5]
[354099396,1740238242476,-1000.0,0.00013,5]
[354099491,1740238245644,-758.0,0.00013,2]
[354099492,1740238245654,-97.65800931,0.00013,5]
[354099493,1740238245666,-440.97300157,0.00013,5]
[354099494,1740238245677,-372.09007501,0.00013,5]
[354099495,1740238245740,-3212.81595253,0.00013,5]
[354099551,1740238336882,156.42,8.767e-05,2]
[354099554,1740238515742,161.0,8.767e-05,3]
[354099555,1740238817319,162.0,8.767e-05,3]
[354099556,1740239116120,162.0,8.767e-05,3]
[354099561,1740239431682,-433.8,0.00010159,2]
[354099562,1740239431693,-388.50311115,0.00010858,2]
[354099563,1740239431703,-388.50311114,0.00010886,2]
[354099564,1740239431712,-152.551066,0.00010958,2]
[354099565,1740239431722,-162.079268,0.00010958,2]
[354099566,1740239431731,-202.885065,0.00010958,2]
[354099567,1740239431741,-266.964369,0.00010958,2]
[354099568,1740239431751,-182.596561,0.00010958,2]
[354099569,1740239431760,-266.964364,0.00010958,2]
[354099570,1740239431770,-182.596558,0.00010958,2]
[354099571,1740239431779,-266.964364,0.00010958,2]
[354099572,1740239431797,-182.596559,0.00010958,2]
[354099573,1740239431808,-266.964364,0.00010958,2]
[354099574,1740239431822,-156.190118,0.00010958,2]
[354099575,1740239431832,-150.0,0.00010986,2]
[354099576,1740239431842,-579.08714014,0.00011005,2]
[354099577,1740239431852,-152.551066,0.00011041,2]
[354099578,1740239431863,-202.885065,0.00011041,2]
[354099579,1740239431873,-202.885065,0.00011123,2]
[354099580,1740239431883,-152.551066,0.00011205,2]
[354099581,1740239431893,-202.885065,0.00011205,2]
[354099582,1740239431902,-152.551066,0.00011287,2]
[354099583,1740239431912,-202.885065,0.00011287,2]
[354099584,1740239431923,-182.596561,0.00011287,2]
[354099585,1740239431933,-182.596558,0.00011287,2]
[354099586,1740239431944,-182.596559,0.00011287,2]
[354099587,1740239431954,-54.29326273,0.00011369,2]
[354099588,1740239431968,-98.25780327,0.00011369,2]
[354099589,1740239431977,-202.885065,0.00011369,2]
[354099590,1740239431988,-638.36720708,0.00011558,2]
[354099591,1740239432044,-763.57279292,0.00011558,2]
[354099592,1740239432054,-179.69,0.00011569,2]
[354099593,1740239432064,-57.13520708,0.00011585,2]
[354099594,1740239432087,-295.07479292,0.00011585,2]
[354099595,1740239432097,-500.0,0.00011585,2]
[354099596,1740239432106,-500.0,0.00011585,2]
[354099597,1740239432118,-1000.0,0.00011601,2]
[354099598,1740239432128,-246.09,0.00011607,2]
[354099599,1740239432138,-150.0,0.00011688,2]
[354099600,1740239432148,-150.00000001,0.00011688,2]
[354099601,1740239432161,-150.0,0.00011688,2]
[354099602,1740239432173,-152.17603003,0.00011688,2]
[354099603,1740239432182,-250.0,0.00011726,2]
[354099604,1740239432192,-150.0,0.00011805,2]
[354099605,1740239432201,-150.0,0.00011873,2]
[354099606,1740239432211,-288.58,0.00011976,2]
[354099608,1740239432220,-163.82,0.00011997,2]
[354099609,1740239432230,-150.0,0.00012059,2]
[354099611,1740239432239,-500.0,0.00012243,2]
[354099613,1740239432249,-150.0,0.00012244,2]
[354099615,1740239432258,-1000.0,0.00012328,2]
[354099617,1740239432267,-150.0,0.00012337,2]
[354099618,1740239432276,-257.29537907,0.0001234,2]
[354099620,1740239432287,-433.8,0.00012423,2]
[354099622,1740239432296,-150.0,0.0001243,2]
[354099624,1740239432306,-1000.0,0.000126,2]
[354099626,1740239432316,-150.0,0.00012615,2]
[354099628,1740239432325,-432.31286095,0.00012627,2]
[354099629,1740239432334,-150.09,0.00012661,2]
[354099631,1740239432345,-345.39057207,0.00012677,2]
[354099633,1740239432358,-150.0,0.00012712,2]
[354099635,1740239432367,-150.0,0.00012737,2]
[354099637,1740239432376,-413.5096295,0.00012739,2]
[354099638,1740239432386,-250.09397362,0.00012743,2]
[354099640,1740239432398,-692.92,0.00012743,2]
[354099642,1740239432410,-56.98602638,0.00012743,2]
[354099644,1740239432421,-150.0,0.00012744,2]
[354099646,1740239432431,-500.0,0.00012744,2]
[354099648,1740239432441,-150.0,0.00012753,2]
[354099650,1740239432449,-150.0,0.00012761,2]
[354099651,1740239432459,-96.57110837,0.00012801,2]
[354099653,1740239432471,-53.42889163,0.00012801,2]
[354099655,1740239432481,-214.24579648,0.00012804,2]
[354099657,1740239432490,-19.63912814,0.00012825,2]
[354099802,1740239437706,-1000.0,0.00012809,2]
[354099803,1740239437716,-0.72676594,0.00012825,2]
[354099804,1740239437728,-979.63410592,0.00012825,2]
[354099805,1740239437737,-150.0,0.00012838,2]
[354099806,1740239437747,-1000.0,0.00012847,2]
[354099807,1740239437756,-150.0,0.00012849,2]
[354099808,1740239437766,-150.0,0.00012857,2]
[354099809,1740239437776,-150.0,0.00012864,2]
[354099810,1740239437785,-500.0,0.00012896,2]
[354099811,1740239437795,-2000.0,0.00012896,2]
[354099812,1740239437805,-500.0,0.00012896,2]
[354099813,1740239437820,-200.0,0.00012896,2]
[354099814,1740239437830,-150.0,0.00012896,2]
[354099815,1740239437840,-2054.14763113,0.00012898,2]
[354099816,1740239437850,-6573.03504326,0.00012898,2]
[354099817,1740239437861,-318.53397743,0.00012898,2]
[354099818,1740239437871,-450.9683,0.00012898,2]
[354099819,1740239437880,-1000.0,0.00012898,2]
[354099820,1740239437891,-3460.01664281,0.00012899,2]
[354099821,1740239437918,-3546.20015719,0.00012899,2]
[354099822,1740239437929,-3664.63270257,0.00012899,2]
[354099823,1740239437941,-45.92289743,0.00012899,2]
[354099824,1740239437950,-190.4140401,0.00012899,2]
[354099825,1740239437960,-4309.9585878,0.000129,2]
[354099826,1740239437972,-2690.2326122,0.000129,2]
[354099828,1740239437981,-1000.0,0.000129,2]
[354099830,1740239437991,-2091.1798,0.000129,2]
[354099831,1740239438000,-3993.53302127,0.000129,2]
[354099996,1740239440143,-1844.16407873,0.000129,2]
[354099997,1740239440153,-17970.9298,0.000129,2]
[354099998,1740239440162,-620.7772,0.000129,2]
[354099999,1740239440172,-155.86470754,0.000129,2]
[354100000,1740239440181,-964.3229,0.000129,2]
[354100001,1740239440190,-234.67577618,0.000129,2]
[354100002,1740239440199,-7339.280279,0.000129,2]
[354100003,1740239440209,-204.7216817,0.000129,2]
[354100004,1740239440218,-1000.0,0.00012913,2]
[354100005,1740239440227,-314.4227703,0.00012916,2]
[354100006,1740239440237,-1979.43750006,0.0001292,2]
[354100007,1740239440246,-1979.43750006,0.00012923,2]
[354100008,1740239440255,-4074.223,0.0001293,2]
[354100009,1740239440266,-300.0,0.00012932,2]
[354100010,1740239440275,-1979.43750006,0.00012936,2]
[354100011,1740239440284,-150.0,0.00012937,2]
[354100012,1740239440293,-150.0,0.00012938,2]
[354100013,1740239440303,-1979.43750006,0.00012949,2]
[354100014,1740239440312,-1000.0,0.00012954,2]
[354100015,1740239440321,-150.0,0.00012954,2]
[354100016,1740239440330,-264.914,0.00012955,2]
[354100017,1740239440339,-150.0,0.00012957,2]
[354100018,1740239440349,-150.0,0.00012963,2]
[354100019,1740239440358,-150.0,0.00012966,2]
[354100020,1740239440367,-500.397666,0.00012973,2]
[354100021,1740239440377,-1000.0,0.00012973,2]
[354100022,1740239440386,-150.0,0.00012986,2]
[354100023,1740239440395,-150.0,0.00012986,2]
[354100024,1740239440404,-481.40712544,0.0001299,2]
[354100025,1740239440414,-123263.603601,0.00012997,3]
[354100026,1740239440423,-181.44410162,0.00012997,2]
[354100027,1740239440433,-500.0,0.00012997,2]
[354100028,1740239440443,-500.0,0.00012997,2]
[354100029,1740239440452,-500.0,0.00012997,2]
[354100030,1740239440462,-500.0,0.00012997,2]
[354100031,1740239440471,-500.0,0.00012997,2]
[354100032,1740239440480,-500.0,0.00012997,2]
[354100033,1740239440489,-500.0,0.00012997,2]
[354100034,1740239440499,-500.0,0.00012997,2]
[354100035,1740239440508,-500.0,0.00012997,2]
[354100036,1740239440517,-500.0,0.00012997,2]
[354100037,1740239440528,-500.0,0.00012997,2]
[354100038,1740239440538,-500.0,0.00012997,2]
[354100039,1740239440548,-500.0,0.00012997,2]
[354100040,1740239440557,-500.0,0.00012997,2]
[354100042,1740239440567,-500.0,0.00012997,2]
[354100044,1740239440576,-500.0,0.00012997,2]
[354100046,1740239440585,-500.0,0.00012997,2]
[354100048,1740239440595,-500.0,0.00012997,2]
[354100051,1740239440604,-500.0,0.00012997,2]
[354100054,1740239440613,-500.0,0.00012997,2]
[354100057,1740239440623,-500.0,0.00012997,2]
[354100060,1740239440633,-500.0,0.00012997,2]
[354100062,1740239440642,-500.0,0.00012997,2]
[354100064,1740239440652,-500.0,0.00012997,2]
[354100066,1740239440661,-500.0,0.00012997,2]
[354100068,1740239440671,-504.31998405,0.00012997,2]
[354100070,1740239440680,-500.0,0.00012997,2]
[354100072,1740239440690,-500.0,0.00012997,2]
[354100074,1740239440699,-500.0,0.00012997,2]
[354100076,1740239440708,-500.0,0.00012997,2]
[354100078,1740239440718,-500.0,0.00012997,2]
[354100080,1740239440727,-500.0,0.00012997,2]
[354100082,1740239440736,-500.0,0.00012997,2]
[354100084,1740239440745,-507.01410544,0.00012997,2]
[354100086,1740239440758,-500.0,0.00012997,2]
[354100088,1740239440767,-500.0,0.00012997,2]
[354100090,1740239440777,-500.0,0.00012997,2]
[354100092,1740239440787,-596.31881894,0.00012997,2]
[354100094,1740239440796,-500.0,0.00012997,2]
[354100097,1740239440806,-500.0,0.00012997,2]
[354100098,1740239440819,-500.0,0.00012997,2]
[354100100,1740239440829,-152.551066,0.00012997,2]
[354100102,1740239440839,-500.0,0.00012997,2]
[354100104,1740239440848,-500.0,0.00012997,2]
[354100106,1740239440858,-500.0,0.00012997,2]
[354100129,1740239441063,-500.0,0.00012997,2]
[354100131,1740239441072,-500.0,0.00012997,2]
[354100133,1740239441082,-182.08876327,0.00012997,2]
[354100135,1740239441091,-905.23,0.00012997,2]
[354100137,1740239441101,-500.0,0.00012997,2]
[354100139,1740239441110,-500.0,0.00012997,2]
[354100141,1740239441119,-500.0,0.00012997,2]
[354100143,1740239441129,-500.0,0.00012997,2]
[354100145,1740239441139,-500.0,0.00012997,2]
[354100147,1740239441149,-500.0,0.00012997,2]
[354100149,1740239441158,-500.0,0.00012997,2]
[354100151,1740239441167,-500.0,0.00012997,2]
[354100153,1740239441176,-500.0,0.00012997,2]
[354100155,1740239441186,-601.11536071,0.00012997,2]
[354100157,1740239441195,-500.0,0.00012997,2]
[354100159,1740239441204,-500.0,0.00012997,2]
[354100161,1740239441214,-500.0,0.00012997,2]
[354100163,1740239441223,-500.0,0.00012997,2]
[354100165,1740239441232,-500.0,0.00012997,2]
[354100167,1740239441242,-500.0,0.00012997,2]
[354100169,1740239441251,-500.0,0.00012997,2]
[354100171,1740239441261,-500.0,0.00012997,2]
[354100173,1740239441271,-500.0,0.00012997,2]
[354100175,1740239441281,-500.0,0.00012997,2]
[354100177,1740239441291,-500.0,0.00012997,2]
[354100179,1740239441301,-500.0,0.00012997,2]
[354100181,1740239441310,-500.0,0.00012997,2]
[354100183,1740239441320,-500.0,0.00012997,2]
[354100185,1740239441329,-500.0,0.00012997,2]
[354100187,1740239441339,-202.885065,0.00012997,2]
[354100189,1740239441348,-500.0,0.00012997,2]
[354100191,1740239441357,-500.0,0.00012997,2]
[354100194,1740239441367,-500.0,0.00012997,2]
[354100195,1740239441377,-500.0,0.00012997,2]
[354100197,1740239441386,-500.0,0.00012997,2]
[354100199,1740239441395,-500.0,0.00012997,2]
[354100201,1740239441405,-500.0,0.00012997,2]
[354100203,1740239441414,-500.0,0.00012997,2]
[354100205,1740239441423,-500.0,0.00012997,2]
[354100207,1740239441432,-500.0,0.00012997,2]
[354100209,1740239441442,-500.0,0.00012997,2]
[354100211,1740239441451,-500.0,0.00012997,2]
[354100213,1740239441460,-500.0,0.00012997,2]
[354100215,1740239441470,-500.0,0.00012997,2]
[354100217,1740239441480,-500.0,0.00012997,2]
[354100219,1740239441489,-500.0,0.00012997,2]
[354100221,1740239441498,-500.0,0.00012997,2]
[354100223,1740239441507,-500.0,0.00012997,2]
[354100225,1740239441517,-500.0,0.00012997,2]
[354100227,1740239441528,-500.0,0.00012997,2]
[354100229,1740239441538,-500.0,0.00012997,2]
[354100231,1740239441547,-500.0,0.00012997,2]
[354100233,1740239441556,-500.0,0.00012997,2]
[354100235,1740239441566,-500.0,0.00012997,2]
[354100237,1740239441576,-500.0,0.00012997,2]
[354100239,1740239441584,-500.0,0.00012997,2]
[354100241,1740239441594,-500.0,0.00012997,2]
[354100243,1740239441603,-500.0,0.00012997,2]
[354100245,1740239441613,-500.0,0.00012997,2]
[354100247,1740239441623,-500.0,0.00012997,2]
[354100249,1740239441632,-500.0,0.00012997,2]
[354100251,1740239441642,-500.0,0.00012997,2]
[354100253,1740239441651,-500.0,0.00012997,2]
[354100255,1740239441661,-500.0,0.00012997,2]
[354100257,1740239441670,-500.0,0.00012997,2]
[354100259,1740239441681,-500.0,0.00012997,2]
[354100261,1740239441691,-500.0,0.00012997,2]
[354100263,1740239441700,-500.0,0.00012997,2]
[354100265,1740239441710,-500.0,0.00012997,2]
[354100267,1740239441720,-500.0,0.00012997,2]
[354100269,1740239441730,-500.0,0.00012997,2]
[354100271,1740239441739,-500.0,0.00012997,2]
[354100272,1740239441748,-500.0,0.00012997,2]
[354100274,1740239441757,-500.0,0.00012997,2]
[354100276,1740239441767,-500.0,0.00012997,2]
[354100279,1740239441776,-500.0,0.00012997,2]
[354100281,1740239441786,-500.0,0.00012997,2]
[354100282,1740239441795,-500.0,0.00012997,2]
[354100285,1740239441805,-500.0,0.00012997,2]
[354100287,1740239441817,-500.0,0.00012997,2]
[354100288,1740239441826,-500.0,0.00012997,2]
[354100290,1740239441835,-500.0,0.00012997,2]
[354100292,1740239441845,-500.0,0.00012997,2]
[354100295,1740239441855,-500.0,0.00012997,2]
[354100297,1740239441865,-500.0,0.00012997,2]
[354100299,1740239441875,-500.0,0.00012997,2]
[354100300,1740239441884,-500.0,0.00012997,2]
[354100302,1740239441894,-500.0,0.00012997,2]
[354100304,1740239441904,-500.0,0.00012997,2]
[354100306,1740239441913,-500.0,0.00012997,2]
[354100308,1740239441922,-500.0,0.00012997,2]
[354100310,1740239441932,-503.04451138,0.00012997,2]
[354100312,1740239441941,-500.0,0.00012997,2]
[354100314,1740239441950,-500.0,0.00012997,2]
[354100316,1740239441959,-500.0,0.00012997,2]
[354100318,1740239441968,-500.0,0.00012997,2]
[354100320,1740239441977,-527.06383383,0.00012997,2]
[354100322,1740239441986,-500.0,0.00012997,2]
[354100324,1740239441998,-500.0,0.00012997,2]
[354100326,1740239442007,-500.0,0.00012997,2]
[354100328,1740239442016,-500.0,0.00012997,2]
[354100330,1740239442025,-500.0,0.00012997,2]
[354100332,1740239442034,-500.0,0.00012997,2]
[354100334,1740239442044,-500.0,0.00012997,2]
[354100337,1740239442054,-500.0,0.00012997,2]
[354100339,1740239442066,-500.0,0.00012997,2]
[354100341,1740239442076,-500.0,0.00012997,2]
[354100343,1740239442085,-500.0,0.00012997,2]
[354100345,1740239442094,-500.0,0.00012997,2]
[354100347,1740239442103,-500.0,0.00012997,2]
[354100349,1740239442113,-500.0,0.00012997,2]
[354100351,1740239442122,-500.0,0.00012997,2]
[354100353,1740239442131,-500.0,0.00012997,2]
[354100355,1740239442140,-500.0,0.00012997,2]
[354100357,1740239442150,-500.0,0.00012997,2]
[354100359,1740239442159,-500.0,0.00012997,2]
[354100361,1740239442168,-500.0,0.00012997,2]
[354100363,1740239442179,-500.0,0.00012997,2]
[354100365,1740239442188,-500.0,0.00012997,2]
[354100367,1740239442197,-500.0,0.00012997,2]
[354100369,1740239442207,-500.0,0.00012997,2]
[354100371,1740239442217,-500.0,0.00012997,2]
[354100373,1740239442227,-500.0,0.00012997,2]
[354100375,1740239442236,-500.0,0.00012997,2]
[354100377,1740239442246,-500.0,0.00012997,2]
[354100379,1740239442255,-500.0,0.00012997,2]
[354100381,1740239442265,-500.0,0.00012997,2]
[354100383,1740239442274,-500.0,0.00012997,2]
[354100385,1740239442283,-500.0,0.00012997,2]
[354100387,1740239442293,-500.0,0.00012997,2]
[354100389,1740239442302,-500.0,0.00012997,2]
[354100391,1740239442311,-615.78,0.00012997,2]
[354100393,1740239442321,-500.0,0.00012997,2]
[354100395,1740239442330,-500.0,0.00012997,2]
[354100397,1740239442339,-500.0,0.00012997,2]
[354100399,1740239442349,-500.0,0.00012997,2]
[354100401,1740239442358,-500.0,0.00012997,2]
[354100403,1740239442367,-500.0,0.00012997,2]
[354100405,1740239442376,-500.0,0.00012997,2]
[354100407,1740239442385,-500.0,0.00012997,2]
[354100409,1740239442394,-500.0,0.00012997,2]
[354100411,1740239442403,-500.0,0.00012997,2]
[354100413,1740239442413,-500.0,0.00012997,2]
[354100415,1740239442423,-500.0,0.00012997,2]
[354100417,1740239442432,-500.0,0.00012997,2]
[354100419,1740239442441,-500.0,0.00012997,2]
[354100421,1740239442450,-500.0,0.00012997,2]
[354100423,1740239442460,-500.0,0.00012997,2]
[354100425,1740239442469,-500.0,0.00012997,2]
[354100427,1740239442478,-500.0,0.00012997,2]
[354100429,1740239442487,-500.0,0.00012997,2]
[354100431,1740239442497,-500.0,0.00012997,2]
[354100433,1740239442506,-500.0,0.00012997,2]
[354100435,1740239442515,-500.0,0.00012997,2]
[354100437,1740239442524,-500.0,0.00012997,2]
[354100439,1740239442534,-500.0,0.00012997,2]
[354100441,1740239442543,-500.0,0.00012997,2]
[354100443,1740239442552,-500.0,0.00012997,2]
[354100445,1740239442561,-500.0,0.00012997,2]
[354100447,1740239442571,-500.0,0.00012997,2]
[354100450,1740239442580,-500.0,0.00012997,2]
[354100453,1740239442589,-500.0,0.00012997,2]
[354100456,1740239442599,-500.0,0.00012997,2]
[354100459,1740239442608,-500.0,0.00012997,2]
[354100462,1740239442617,-500.0,0.00012997,2]
[354100466,1740239442627,-500.0,0.00012997,2]
[354100470,1740239442636,-500.0,0.00012997,2]
[354100474,1740239442645,-500.0,0.00012997,2]
[354100478,1740239442655,-500.0,0.00012997,2]
[354100481,1740239442664,-500.0,0.00012997,2]
[354100485,1740239442673,-500.0,0.00012997,2]
[354100490,1740239442684,-527.54890603,0.00012997,2]
[354100494,1740239442693,-500.0,0.00012997,2]
[354100497,1740239442702,-500.0,0.00012997,2]
[354100500,1740239442712,-500.0,0.00012997,2]
[354100503,1740239442721,-500.0,0.00012997,2]
[354100506,1740239442730,-500.0,0.00012997,2]
[354100508,1740239442739,-500.0,0.00012997,2]
[354100510,1740239442749,-542.75,0.00012997,2]
[354100512,1740239442758,-500.0,0.00012997,2]
[354100514,1740239442767,-500.0,0.00012997,2]
[354100516,1740239442777,-500.0,0.00012997,2]
[354100517,1740239442786,-500.0,0.00012997,2]
[354100518,1740239442795,-500.0,0.00012997,2]
[354100519,1740239442804,-500.0,0.00012997,2]
[354100521,1740239442816,-501.70025976,0.00012997,2]
[354100522,1740239442825,-500.0,0.00012997,2]
[354100524,1740239442834,-500.0,0.00012997,2]
[354100526,1740239442844,-500.0,0.00012997,2]
[354100528,1740239442853,-500.0,0.00012997,2]
[354100530,1740239442862,-500.0,0.00012997,2]
[354100532,1740239442872,-500.0,0.00012997,2]
[354100534,1740239442882,-500.0,0.00012997,2]
[354100536,1740239442893,-500.0,0.00012997,2]
[354100538,1740239442903,-500.0,0.00012997,2]